[Event "Haarlemse Meesters-IM 2018"]
[Site "Haarlem"]
[Date "2018.10.25"]
[Round "6"]
[White "Basman, Michael J"]
[Black "Vedder, Richard"]
[Result "1-0"]
[ECO "A00"]
[WhiteElo "2313"]
[BlackElo "2288"]
[Annotator "ChessBase"]
[PlyCount "169"]
[EventDate "2018.10.17"]
[EventType "tourn"]
[EventCountry "NED"]
[SourceTitle "playchess.com"]
[Source "ChessBase"]
[SourceQuality "1"]
[TimeControl "40/5400+30:1800+30"]

1. g4 {[%emt 0:00:00]} d5 {[%emt 0:00:00]} 2. h3 {[%emt 0:00:00]} e5 {[%emt 0:00:00]} 3. Bg2 {[%emt 0:00:14]} h5 {[%emt 0:00:27]} 4. g5 {[%emt 0:00:05]} c6 {[%emt 0:00:43]} 5. d4 {[%emt 0:04:20]} Nd7 {[%emt 0:02:16]} 6. c4 {[%emt 0:01:32]} dxc4 {[%emt 0:01:25]} 7. Nc3 {[%emt 0:00:09]} exd4 {[%emt 0:04:35]} 8. Qxd4 {[%emt 0:01:54]} Nb6 {[%emt 0:00:53]} 9. Qxd8+ {[%emt 0:06:19]} Kxd8 {[%emt 0:00:05]} 10. Bf4 {[%emt 0:03:45]} Be6 {[%emt 0:00:21]} 11. O-O-O+ {[%emt 0:00:14]} Ke8 {[%emt 0:01:52]} 12. e4 {[%emt 0:04:54]} Ne7 {[%emt 0:01:18]} 13. Nge2 {[%emt 0:00:18]} Ng6 {[%emt 0:00:31]} 14. Bg3 {[%emt 0:01:50]} h4 {[%emt 0:08:15]} 15. Bh2 {[%emt 0:00:30]} Bc5 {[%emt 0:00:17]} 16. f4 {[%emt 0:01:32]} Bd7 {[%emt 0:00:11]} 17. f5 {[%emt 0:04:55]} Nf8 {[%emt 0:01:13]} 18. Kc2 {[%emt 0:04:58]} g6 {[%emt 0:04:01]} 19. Bd6 {[%emt 0:10:04]} Bxd6 {[%emt 0:03:27]} 20. Rxd6 {[%emt 0:00:02]} Ke7 {[%emt 0:03:11]} 21. Rd2 {[%emt 0:03:16]} gxf5 {[%emt 0:00:26]} 22. Nd4 {[%emt 0:01:43]} fxe4 {[%emt 0:00:33]} 23. Nxe4 {[%emt 0:03:26]} Nd5 {[%emt 0:16:38]} 24. Re1 {[%emt 0:03:53]} Be6 {[%emt 0:02:48]} 25. Nc5 {[%emt 0:06:36]} Nb4+ {[%emt 0:09:00]} 26. Kb1 {[%emt 0:03:26]} Nd3 {[%emt 0:00:25]} 27. Nxd3 {[%emt 0:05:50]} cxd3 {[%emt 0:00:09]} 28. Rxd3 {[%emt 0:06:33]} Ng6 {[%emt 0:00:27]} 29. Be4 {[%emt 0:06:34]} Rhg8 {[%emt 0:02:41]} 30. Bf5 {[%emt 0:01:27]} Nf8 {[%emt 0:06:13]} 31. g6 {[%emt 0:02:06]} Rxg6 {[%emt 0:07:38]} 32. Bxg6 {[%emt 0:00:17]} Nxg6 {[%emt 0:00:02]} 33. Rde3 {[%emt 0:01:07]} Nf4 {[%emt 0:03:11]} 34. Re4 {[%emt 0:00:57]} Nxh3 {[%emt 0:00:09]} 35. Nxe6 {[%emt 0:00:18]} fxe6 {[%emt 0:00:01]} 36. Rxe6+ {[%emt 0:00:15]} Kd7 {[%emt 0:00:02]} 37. Rh6 {[%emt 0:01:35]} Nf4 {[%emt 0:01:28]} 38. Rxh4 {[%emt 0:00:18]} Nd5 {[%emt 0:00:02]} 39. Rh7+ {[%emt 0:00:33]} Kd6 {[%emt 0:00:05]} 40. Rxb7 {[%emt 0:00:09]} a5 {[%emt 0:00:05]} 41. a3 {[%emt 0:30:59]} Ra6 {[%emt 0:31:20]} 42. Rh1 {[%emt 0:01:11]} Ra8 {[%emt 0:00:17]} 43. Rhh7 {[%emt 0:00:17]} Kc5 {[%emt 0:00:28]} 44. Ra7 {[%emt 0:00:17]} Rxa7 {[%emt 0:00:05]} 45. Rxa7 {[%emt 0:00:07]} Kb5 {[%emt 0:00:32]} 46. Kc2 {[%emt 0:03:38]} a4 {[%emt 0:01:05]} 47. Rb7+ {[%emt 0:02:56]} Kc4 {[%emt 0:00:59]} 48. b3+ {[%emt 0:01:16]} axb3+ {[%emt 0:00:04]} 49. Rxb3 {[%emt 0:00:08]} Kc5 {[%emt 0:01:29]} 50. Rb8 {[%emt 0:00:52]} Nb6 {[%emt 0:00:58]} 51. Kb3 {[%emt 0:00:16]} Kb5 {[%emt 0:01:26]} 52. a4+ {[%emt 0:04:45]} Ka5 {[%emt 0:00:14]} 53. Rh8 {[%emt 0:00:00]} Nd5 {[%emt 0:00:00]} 54. Ra8+ {[%emt 0:00:00]} Kb6 {[%emt 0:00:00]} 55. Kc4 {[%emt 0:00:00]} Kb7 {[%emt 0:00:00]} 56. Rh8 {[%emt 0:00:00]} Kb6 {[%emt 0:00:00]} 57. Rb8+ {[%emt 0:00:00]} Ka5 {[%emt 0:00:00]} 58. Ra8+ {[%emt 0:00:00]} Kb6 {[%emt 0:00:00]} 59. a5+ {[%emt 0:00:00]} Kb7 {[%emt 0:00:00]} 60. Rh8 {[%emt 0:00:00]} Nf4 {[%emt 0:00:00]} 61. Rf8 {[%emt 0:00:00]} Ng6 {[%emt 0:00:00]} 62. Rf6 {[%emt 0:00:00]} Ne5+ {[%emt 0:00:00]} 63. Kd4 {[%emt 0:00:00]} Ng4 {[%emt 0:00:00]} 64. Rg6 {[%emt 0:00:00]} Nf2 {[%emt 0:00:00]} 65. Rg2 {[%emt 0:00:00]} c5+ {[%emt 0:00:00]} 66. Kxc5 {[%emt 0:00:00]} Ne4+ {[%emt 0:00:00]} 67. Kd4 {[%emt 0:00:00]} Nd6 {[%emt 0:00:00]} 68. Kd5 {[%emt 0:00:00]} Nb5 {[%emt 0:00:00]} 69. Kc5 {[%emt 0:00:00]} Na7 {[%emt 0:00:00]} 70. Rg6 {[%emt 0:00:00]} Nc8 {[%emt 0:00:00]} 71. a6+ {[%emt 0:01:08]} Kb8 {[%emt 0:00:00]} 72. Rg8 {[%emt 0:02:27]} Kc7 {[%emt 0:00:00]} 73. Rg7+ {[%emt 0:00:04]} Kb8 {[%emt 0:00:00]} 74. Rb7+ {[%emt 0:00:28]} Ka8 {[%emt 0:00:00]} 75. Kc6 {[%emt 0:02:06]} Na7+ {[%emt 0:00:00]} 76. Kd7 {[%emt 0:00:18]} Nc6 {[%emt 0:00:00]} 77. Rb6 {[%emt 0:01:38]} Na5 {[%emt 0:00:00]} 78. Rb5 {[%emt 0:00:37]} Nc4 {[%emt 0:00:00]} 79. Rb4 {[%emt 0:00:28]} Na5 {[%emt 0:00:00]} 80. Ra4 {[%emt 0:00:49]} Nb3 {[%emt 0:00:00]} 81. Kc6 {[%emt 0:00:59]} Ka7 {[%emt 0:00:00]} 82. Kd5 {[%emt 0:00:20]} Nd2 {[%emt 0:00:00]} 83. Ra3 {[%emt 0:00:12]} Nb1 {[%emt 0:00:00]} 84. Rd3 {[%emt 0:00:49]} Kxa6 {[%emt 0:00:00]} 85. Kc4 {[%emt 0:00:01]} 1-0

[Event "Haarlemse Meesters-IM 2018"]
[Site "Haarlem"]
[Date "2018.10.26"]
[Round "7"]
[White "Harff, Marcel"]
[Black "Van Kerkhof, David"]
[Result "1-0"]
[ECO "A35"]
[WhiteElo "2420"]
[BlackElo "2371"]
[Annotator "NA"]
[PlyCount "67"]
[EventDate "2018.10.17"]
[EventType "tourn"]
[EventCountry "NED"]
[SourceTitle "playchess.com"]
[Source "ChessBase"]
[SourceQuality "1"]
[TimeControl "40/5400+30:1800+30"]

{[%evp 8,53,16,3,7,0,0,-5,-8,-9,-14,-16,-20,-6,-11,0,0,0,0,0,23,8,46,27,62,48,57,32767,32767,88,97,32767,143,139,135,32767,150,32767,32767,32767,32767,32767,32767,32767,32767,32767,32767,165]} 1. c4 {[%emt 0:00:00]} c5 {[%emt 0:00:00]} 2. Nf3 {[%emt 0:00:00]} g6 {[%emt 0:00:00]} 3. Nc3 {[%emt 0:00:22]} Bg7 {[%emt 0:00:11]} 4. d4 {[%emt 0:00:40]} cxd4 {[%emt 0:00:17]} 5. Nxd4 {[%emt 0:00:09]} Nc6 {[%emt 0:00:07]} 6. e3 {[%emt 0:00:06]} Nf6 {[%emt 0:00:09]} 7. g3 {[%emt 0:03:45] A35: Symmetrical English: 2 Nc3 Nc6 3 Nf3} d5 {[%emt 0:20:48]} 8. cxd5 {[%emt 0:09:03]} Nxd5 {[%emt 0:00:22]} 9. Bg2 {[%emt 0:00:07]} Nxc3 {[%emt 0:04:32]} 10. bxc3 {[%emt 0:00:03] LiveBook: 3 Games} Na5 {[%emt 0:03:18]} 11. O-O {[%emt 0:01:45]} O-O {[%emt 0:00:12]} 12. Ba3 {[%emt 0:00:37]} Qc7 $146 {[%emt 0:23:12]} ({Predecessor:} 12... Bd7 13. Bb4 Rb8 14. Rc1 b5 15. Qe2 Bf6 16. Rfd1 Qc7 17. Bxa5 Qxa5 18. Bc6 Bxd4 19. cxd4 Bxc6 20. Rxc6 {½-½ (31) Rechlis,G (2475)-Sabi,Y (2295) Israel 1988}) 13. Bb4 {[%emt 0:04:30]} Nc4 {[%emt 0:02:22]} 14. Qe2 {[%emt 0:00:15]} Nd6 {[%emt 0:05:19]} 15. Rab1 {[%emt 0:00:37]} a6 {[%emt 0:03:35]} 16. Bxd6 {[%emt 0:01:54]} exd6 {[%emt 0:01:57]} 17. Qb2 {[%emt 0:03:06]} Rb8 {[%emt 0:06:45]} 18. Qb6 {[%emt 0:08:03]} Qxc3 {[%emt 0:00:05]} 19. Qxd6 {[%emt 0:01:54]} Bg4 {[%emt 0:00:13] [#]} (19... Ra8 $1 $14) 20. Nc6 $1 {[%emt 0:00:55]} Rbe8 {[%emt 0:04:14]} 21. Rfc1 {[%emt 0:02:08]} Be5 {[%emt 0:02:27]} 22. Rxc3 {[%emt 0:01:52]} Bxd6 {[%emt 0:00:01]} 23. Rxb7 {[%emt 0:00:09]} Rc8 {[%emt 0:06:36]} 24. Bd5 {[%emt 0:03:38]} Be6 {[%emt 0:04:10]} 25. Bxe6 {[%emt 0:00:42]} fxe6 {[%emt 0:00:02]} 26. Rb6 {[%emt 0:00:07]} a5 {[%emt 0:00:28]} 27. Ra6 $18 {[%emt 0:05:48]} Rc7 {[%emt 0:03:26]} 28. Rd3 {[%emt 0:00:19]} Bb4 {[%emt 0:00:28]} 29. a3 {[%emt 0:01:34]} Be1 {[%emt 0:01:05]} 30. f4 {[%emt 0:00:15]} Rfc8 {[%emt 0:01:02]} 31. Rd6 {[%emt 0:00:30]} Kf7 {[%emt 0:00:56]} 32. Kg2 {[%emt 0:00:45]} Bc3 {[%emt 0:01:19]} 33. Kf3 {[%emt 0:02:23]} Bg7 {[%emt 0:00:17]} 34. Nd8+ {[%emt 0:00:21]} 1-0

[Event "Haarlemse Meesters-IM 2018"]
[Site "Haarlem"]
[Date "2018.10.26"]
[Round "7"]
[White "Bosboom, Manuel"]
[Black "Van Baar, Esper"]
[Result "1-0"]
[ECO "A37"]
[WhiteElo "2404"]
[BlackElo "2223"]
[Annotator "NA"]
[PlyCount "61"]
[EventDate "2018.10.17"]
[EventType "tourn"]
[EventCountry "NED"]
[SourceTitle "playchess.com"]
[Source "ChessBase"]
[SourceQuality "1"]
[TimeControl "40/5400+30:1800+30"]

{[%evp 8,42,9,0,12,6,10,11,6,16,12,0,0,-2,0,-8,-8,-14,-10,-23,32767,-35,-26,-54,-51,-55,-40,32767,32767,32767,-30,-22,-20,-63,-64,32767,0]} 1. c4 {[%emt 0:00:00]} c5 {[%emt 0:03:54]} 2. g3 {[%emt 0:02:07]} g6 {[%emt 0:00:10]} 3. Bg2 {[%emt 0:00:36]} Bg7 {[%emt 0:00:06]} 4. Nc3 {[%emt 0:02:16]} d6 {[%emt 0:00:55]} 5. Nf3 {[%emt 0:05:24]} Nc6 {[%emt 0:00:06]} 6. Rb1 {[%emt 0:00:28]} e5 {[%emt 0:01:04]} 7. a3 {[%emt 0:01:49]} a5 {[%emt 0:00:56]} 8. d3 {[%emt 0:04:04]} Nge7 {[%emt 0:00:49]} 9. Bg5 {[%emt 0:03:53]} f6 {[%emt 0:02:21]} 10. Bd2 {[%emt 0:01:45]} Be6 {[%emt 0:01:27] LiveBook: 7 Games} 11. O-O {[%emt 0:08:22]} O-O {[%emt 0:01:42]} 12. Qc1 {[%emt 0:11:33]} Rb8 {[%emt 0:04:14]} 13. h4 {[%emt 0:03:35] [#] A37: Symmetrical English vs ...g6: 4 Bg2 Bg7 5 Nf3} Qd7 $146 {[%emt 0:03:09]} ({Predecessor:} 13... b6 14. e4 Qd7 15. Kh2 Bg4 16. Ng1 Rf7 17. f3 Be6 18. Nge2 f5 19. f4 {0-1 (29) Sahu,R (2097)-Ismagambetov,A (2525) Bhubaneswar 2009}) 14. Re1 {[%emt 0:07:25]} b6 {[%emt 0:02:56]} 15. Bh6 {[%emt 0:04:26]} d5 {[%emt 0:04:00]} 16. Bxg7 {[%emt 0:03:13]} Kxg7 {[%emt 0:00:08]} 17. cxd5 {[%emt 0:03:26]} Nxd5 {[%emt 0:00:31]} 18. Nd2 {[%emt 0:05:40]} Nd4 {[%emt 0:08:17]} 19. e3 {[%emt 0:01:32]} Nc6 {[%emt 0:01:06]} 20. Nce4 {[%emt 0:05:39]} Nde7 {[%emt 0:04:30]} 21. Nc4 {[%emt 0:03:00]} Qxd3 $11 {[%emt 0:19:57]} (21... Rfd8 $15 22. Rd1 Bg4) 22. Nxb6 {[%emt 0:05:25]} Rxb6 {[%emt 0:00:10]} 23. Nxc5 {[%emt 0:00:02]} Qd6 {[%emt 0:11:49]} 24. Rd1 {[%emt 0:00:32]} Bd5 {[%emt 0:00:29]} 25. Bxd5 {[%emt 0:06:24]} Nxd5 {[%emt 0:00:16]} 26. Qc4 {[%emt 0:00:02]} Rd8 {[%emt 0:09:22]} 27. Rbc1 {[%emt 0:00:13]} Nce7 {[%emt 0:05:04]} 28. e4 {[%emt 0:01:07]} Rxb2 {[%emt 0:01:59]} 29. exd5 {[%emt 0:00:51]} Rc8 {[%emt 0:00:46]} 30. Ne6+ {[%emt 0:03:39]} Kh8 {[%emt 0:01:46]} 31. Qxc8+ {[%emt 0:00:10]} 1-0

[Event "Haarlemse Meesters-IM 2018"]
[Site "Haarlem"]
[Date "2018.10.26"]
[Round "7"]
[White "Vedder, Richard"]
[Black "Lenaerts, Lennert"]
[Result "0-1"]
[ECO "C60"]
[WhiteElo "2288"]
[BlackElo "2362"]
[Annotator "NA"]
[PlyCount "52"]
[EventDate "2018.10.17"]
[EventType "tourn"]
[EventCountry "NED"]
[SourceTitle "playchess.com"]
[Source "ChessBase"]
[SourceQuality "1"]
[TimeControl "40/5400+30:1800+30"]

{[%evp 11,47,45,37,46,33,30,43,41,38,27,32,25,34,30,26,-12,-19,-46,-43,-50,-40,-56,-39,-118,-88,-247,-296,-277,-274,32767,32767,-480,-511,32767,32767,32767,32767,-697]} 1. e4 {[%emt 0:00:00]} e5 {[%emt 0:05:03]} 2. Nf3 {[%emt 0:00:00]} Nc6 {[%emt 0:00:04]} 3. Bb5 {[%emt 0:00:00]} g6 {[%emt 0:00:07]} 4. c3 {[%emt 0:00:00]} d6 {[%emt 0:00:05]} 5. d4 {[%emt 0:00:00]} Bd7 {[%emt 0:00:01]} 6. d5 {[%emt 0:00:12] C60: Ruy Lopez: Unusual Black 3rd moves and 3...g6} (6. O-O Bg7 7. Be3 Nf6 8. dxe5 dxe5 9. Nbd2 O-O 10. Re1 Re8 11. h3 h6 12. a4 a6 13. Bc4 b6 14. b4 Qc8 15. a5 bxa5 16. bxa5 {½-½ (24) Tari,A (2597)-Kamsky,G (2677) Moscow 2018}) 6... Nce7 {[%emt 0:00:04]} 7. Bxd7+ {[%emt 0:00:05]} Qxd7 {[%emt 0:00:01]} 8. c4 {[%emt 0:00:10]} Bg7 {[%emt 0:00:02]} 9. Nc3 {[%emt 0:00:12]} h6 {[%emt 0:00:02]} 10. O-O {[%emt 0:02:06]} f5 {[%emt 0:00:02] LiveBook: 6 Games} 11. Ne1 {[%emt 0:00:42]} Nf6 {[%emt 0:02:03]} 12. f3 {[%emt 0:01:39]} O-O {[%emt 0:00:06]} 13. c5 $146 {[%emt 0:05:44]} ({Predecessor:} 13. Nd3 g5 14. c5 g4 15. Be3 {1-0 (33) Petrik,T (2461)-Repka,C (2429) Banska Stiavnica 2015}) 13... dxc5 {[%emt 0:04:57]} 14. Nd3 {[%emt 0:00:24]} Qd6 {[%emt 0:01:06]} 15. Be3 {[%emt 0:09:01]} b6 $1 {[%emt 0:00:30]} 16. Nb5 $1 {[%emt 0:07:48]} Qd8 $1 {[%emt 0:02:57]} 17. Qb3 {[%emt 0:02:01]} ({Better is} 17. Nxe5 $15 Nfxd5 18. Bxh6 Bxh6 19. exd5) 17... Kh7 {[%emt 0:00:55]} 18. Rfd1 $2 {[%emt 0:02:29]} (18. Nxe5 $17 Nfxd5 19. Nxg6 Nxe3 20. Nxf8+ Qxf8 21. Qxe3) 18... fxe4 {[%emt 0:01:22]} 19. Nxe5 {[%emt 0:02:50]} exf3 {[%emt 0:06:09]} ({Less strong is} 19... Nexd5 20. Nc3 $17) 20. d6 {[%emt 0:08:48]} cxd6 {[%emt 0:00:05]} 21. Nxd6 {[%emt 0:00:44]} Nfd5 {[%emt 0:13:52]} 22. Rxd5 {[%emt 0:21:42]} Nxd5 {[%emt 0:00:02]} 23. Qxd5 {[%emt 0:00:11]} Rf5 {[%emt 0:00:04]} 24. Qxa8 $19 {[%emt 0:01:33]} Qxa8 {[%emt 0:00:02]} 25. Nxf5 {[%emt 0:00:07]} Bxe5 {[%emt 0:00:04]} 26. Nxh6 {[%emt 0:00:09]} Qe4 {[%emt 0:00:08]} 0-1

[Event "Haarlemse Meesters-IM 2018"]
[Site "Haarlem"]
[Date "2018.10.27"]
[Round "8"]
[White "Lenaerts, Lennert"]
[Black "Daeschler, Florian"]
[Result "1-0"]
[ECO "D36"]
[WhiteElo "2362"]
[BlackElo "2254"]
[Annotator "NA"]
[PlyCount "83"]
[EventDate "2018.10.17"]
[EventType "tourn"]
[EventCountry "NED"]
[SourceTitle "playchess.com"]
[Source "ChessBase"]
[SourceQuality "1"]
[TimeControl "40/5400+30:1800+30"]

1. d4 {[%emt 0:02:07]} d5 {[%emt 0:00:00]} 2. c4 {[%emt 0:00:06]} e6 {[%emt 0:00:00]} 3. Nc3 {[%emt 0:00:03]} Nf6 {[%emt 0:00:00]} 4. cxd5 {[%emt 0:00:04]} exd5 {[%emt 0:00:00]} 5. Bg5 {[%emt 0:00:04]} c6 {[%emt 0:00:00]} 6. e3 {[%emt 0:00:07]} Be7 {[%emt 0:00:00]} 7. Bd3 {[%emt 0:00:06]} Nbd7 {[%emt 0:00:00]} 8. Qc2 {[%emt 0:00:08]} h6 {[%emt 0:00:00]} 9. Bh4 {[%emt 0:00:04]} Nh5 {[%emt 0:00:00]} 10. Bxe7 {[%emt 0:00:06]} Qxe7 {[%emt 0:00:02]} 11. Nge2 {[%emt 0:00:05]} Nb6 {[%emt 0:00:09]} 12. O-O-O {[%emt 0:04:30] D36: Queen's Gambit Declined: Exchange Variation: Main line (5 Bg5 c6 6 Qc2)} (12. O-O O-O 13. Rae1 Be6 14. Nc1 Rad8 15. Nb3 Rfe8 16. Nc5 Bc8 17. b4 Nc4 18. Qe2 Qg5 19. f4 Qh4 20. Bxc4 dxc4 {0-1 (37) Navara,D (2724)-Adams,M (2740) Biel 2015 CBM 168 [Krasenkow,M]}) 12... Bd7 {[%emt 0:00:38] LiveBook: 7 Games} 13. Kb1 {[%emt 0:00:11]} O-O-O {[%emt 0:04:05]} 14. Rhe1 $146 {[%emt 0:02:53]} ({Predecessor:} 14. Qb3 Kb8 15. a4 c5 16. Qa3 Rc8 17. a5 Nc4 18. Qa2 Be6 19. Bxc4 dxc4 {½-½ (58) Leniart,A (2489)-Grinev,V (2412) Suwalki 2018}) 14... Kb8 {[%emt 0:03:34]} 15. f3 {[%emt 0:07:06]} Rhe8 {[%emt 0:06:53]} (15... Qxe3 $15 16. Ng3 Qg5) 16. e4 {[%emt 0:00:28]} dxe4 {[%emt 0:04:50]} 17. fxe4 {[%emt 0:00:06]} Bc8 {[%emt 0:02:12]} 18. Qc1 {[%emt 0:03:23]} Qg5 {[%emt 0:06:39]} 19. g3 {[%emt 0:03:21]} Qxc1+ {[%emt 0:06:42]} 20. Kxc1 {[%emt 0:00:02]} Re7 {[%emt 0:06:36]} 21. b3 {[%emt 0:02:08]} g6 {[%emt 0:02:54]} 22. Rf1 {[%emt 0:01:09]} Bh3 {[%emt 0:09:04]} 23. Rf2 {[%emt 0:00:46]} Ng7 {[%emt 0:03:38]} 24. Bc4 {[%emt 0:09:21]} Nxc4 {[%emt 0:10:34]} 25. bxc4 {[%emt 0:00:08]} Ne8 {[%emt 0:00:13]} 26. e5 {[%emt 0:07:08]} Be6 {[%emt 0:02:58]} 27. c5 $15 {[%emt 0:02:09]} Bf5 {[%emt 0:05:32]} 28. Rdf1 {[%emt 0:02:11]} Nc7 {[%emt 0:03:09]} 29. g4 {[%emt 0:02:39]} Bxg4 {[%emt 0:02:54]} 30. Rxf7 {[%emt 0:00:36]} Rxf7 {[%emt 0:00:04]} 31. Rxf7 {[%emt 0:00:02]} Ne6 {[%emt 0:00:07]} 32. Rf6 {[%emt 0:02:42]} Nxd4 {[%emt 0:08:51]} 33. Nxd4 {[%emt 0:00:25]} Rxd4 {[%emt 0:00:03]} 34. Rxg6 {[%emt 0:00:04]} h5 {[%emt 0:00:09]} 35. e6 {[%emt 0:00:49]} Rd8 {[%emt 0:03:48]} 36. e7 {[%emt 0:00:44]} Re8 {[%emt 0:00:03]} 37. Rg7 {[%emt 0:00:01]} Bf5 {[%emt 0:02:02]} 38. Rf7 {[%emt 0:00:02]} Bg6 {[%emt 0:00:05]} 39. Rf6 {[%emt 0:00:04]} Bh7 {[%emt 0:00:24]} 40. Rf8 {[%emt 0:00:20]} Bg6 {[%emt 0:00:10]} 41. Rxe8+ {[%emt 0:30:17]} Bxe8 {[%emt 0:30:04]} 42. Ne4 {[%emt 0:00:01]} 1-0

[Event "Haarlemse Meesters-IM 2018"]
[Site "Haarlem"]
[Date "2018.10.27"]
[Round "8"]
[White "Gijswijt, Bart"]
[Black "Van Kerkhof, David"]
[Result "0-1"]
[ECO "E10"]
[WhiteElo "2321"]
[BlackElo "2371"]
[Annotator "NA"]
[PlyCount "86"]
[EventDate "2018.10.17"]
[EventType "tourn"]
[EventCountry "NED"]
[SourceTitle "playchess.com"]
[Source "ChessBase"]
[SourceQuality "1"]
[TimeControl "40/5400+30:1800+30"]

1. d4 {[%emt 0:00:00]} Nf6 {[%emt 0:00:00]} 2. c4 {[%emt 0:00:00]} c5 {[%emt 0:00:00]} 3. d5 {[%emt 0:00:00]} b5 {[%emt 0:00:00]} 4. Nf3 {[%emt 0:00:21]} e6 {[%emt 0:00:00]} 5. dxe6 {[%emt 0:01:42]} fxe6 {[%emt 0:00:04]} 6. cxb5 {[%emt 0:00:08]} d5 {[%emt 0:00:19]} 7. Nc3 {[%emt 0:00:46]} Be7 {[%emt 0:07:15] E10: Blumenfeld Gambit} (7... Nbd7 8. Bf4 d4 9. Nb1 Nd5 10. Bg3 a6 11. e4 dxe3 12. fxe3 Nxe3 13. Qb3 Nxf1 14. Rxf1 axb5 15. Nc3 c4 16. Qxb5 Qb6 17. O-O-O Bc5 18. Ne5 Qxb5 19. Nxb5 Nxe5 20. Nc7+ Ke7 21. Bh4+ {1-0 (21) Milov,V (2681)-Tregubov,P (2646) Ajaccio 2008}) 8. e4 {[%emt 0:13:31]} d4 {[%emt 0:03:21] LiveBook: 5 Games} 9. e5 {[%emt 0:08:15]} Ng4 {[%emt 0:00:29]} (9... dxc3 $11 {remains equal.} 10. exf6 Bxf6 11. Qxd8+ Kxd8) 10. Ne4 {[%emt 0:06:32]} (10. Ne2 $16) 10... Nd7 {[%emt 0:06:22]} 11. Nfg5 {[%emt 0:05:33]} Ndxe5 {[%emt 0:01:02]} 12. f4 $1 {[%emt 0:01:47]} O-O $1 {[%emt 0:02:00]} 13. fxe5 $146 {[%emt 0:01:10]} ({Predecessor:} 13. h3 $5 {[%cal Rh3g4]} Nf6 14. fxe5 Nxe4 15. Nxe4 $14 {1-0 (34) Ernst,S (2568)-Snuverink,J (2357) Netherlands 2014}) 13... Nxe5 {[%emt 0:01:20]} 14. Qb3 {[%emt 0:16:24]} Qd5 {[%emt 0:34:25]} 15. Qxd5 $1 {[%emt 0:01:31]} exd5 {[%emt 0:00:15]} 16. Ng3 {[%emt 0:08:09]} Bg4 {[%emt 0:10:50]} 17. Be2 {[%emt 0:10:22]} Rae8 $11 {[%emt 0:02:18]} 18. Bxg4 {[%emt 0:09:27]} Bxg5 {[%emt 0:02:53]} 19. Bh5 {[%emt 0:01:38]} Bxc1 {[%emt 0:09:09]} 20. Rxc1 {[%emt 0:04:21]} Nd3+ {[%emt 0:01:06]} 21. Kd2 {[%emt 0:00:30]} Rf2+ {[%emt 0:00:40]} 22. Ne2 {[%emt 0:00:16]} Nxc1 {[%emt 0:01:40]} 23. Rxc1 {[%emt 0:00:02]} Re5 {[%emt 0:00:19]} 24. Bf3 {[%emt 0:01:49]} c4 {[%emt 0:00:39]} 25. b3 {[%emt 0:01:47]} d3 {[%emt 0:01:27]} 26. bxc4 {[%emt 0:00:18]} dxc4 {[%emt 0:09:19]} 27. Ke1 {[%emt 0:02:00]} Rexe2+ {[%emt 0:02:15]} 28. Bxe2 {[%emt 0:00:02]} Rxe2+ {[%emt 0:00:06]} 29. Kd1 {[%emt 0:00:06]} Rxa2 {[%emt 0:00:32]} 30. Rxc4 {[%emt 0:00:17]} Rxg2 {[%emt 0:00:42]} 31. h4 {[%emt 0:00:38]} Rb2 {[%emt 0:01:17]} 32. Rc5 {[%emt 0:01:02]} Kf7 {[%emt 0:02:22]} 33. Rd5 {[%emt 0:01:14]} Ke6 {[%emt 0:00:33]} 34. Rg5 {[%emt 0:01:47]} Kf6 {[%emt 0:00:14]} 35. Rh5 {[%emt 0:00:26]} Kg6 {[%emt 0:00:35]} 36. Rg5+ {[%emt 0:00:31]} Kh6 {[%emt 0:00:21]} 37. Rd5 {[%emt 0:01:06]} Rh2 {[%emt 0:00:25]} 38. Rd4 {[%emt 0:01:20]} Rb2 {[%emt 0:00:07]} 39. Rd5 {[%emt 0:00:25]} Rb4 {[%emt 0:00:28]} 40. Kd2 {[%emt 0:01:27]} Rxh4 {[%emt 0:00:40]} 41. Kxd3 {[%emt 0:30:12]} Ra4 {[%emt 0:03:11]} 42. Ke3 {[%emt 0:00:00]} g5 {[%emt 0:01:11]} 43. Kf3 {[%emt 0:00:00]} Kh5 {[%emt 0:00:22]} 0-1